Workbook

Sheet Index
A1: Number | B1: Spreadsheet | C1: Magazine | D1: Title | E1: Folder | F1: File Name | G1: Hyperlink
A2: 1 | B2: =("Rh_Os_00" & A2) -> Rh_Os_001 | C2: XXX | D2: XXX | E2: =("C:\Essays\Geo_Dating\Rhenium\") -> C:\Essays\Geo_Dating\Rhenium\ | F2: =("Rhenium_00" & A2 & ".pdf") -> Rhenium_001.pdf | G2: =(E2 & F2) -> C:\Essays\Geo_Dating\Rhenium\Rhenium_001.pdf | H2: =(A2) -> 1 | I2: =(D2 & ", " & C2) -> XXX, XXX
A3: 2 | B3: =("Rh_Os_00" & A3) -> Rh_Os_002 | C3: XXX | D3: XXX | E3: C:\Essays\Geo_Dating\Rhenium\ | F3: =("Rhenium_00" & A3 & ".pdf") -> Rhenium_002.pdf | G3: C:\Essays\Geo_Dating\Rhenium\Rhenium_002.pdf | H3: 2 | I3: =(D3 & ", " & C3) -> XXX, XXX
A4: 3 | B4: Rh_Os_003 | C4: XXX | D4: XXX | E4: C:\Essays\Geo_Dating\Rhenium\ | F4: Rhenium_003.pdf | G4: C:\Essays\Geo_Dating\Rhenium\Rhenium_003.pdf | H4: 3 | I4: XXX, XXX
A5: 4 | B5: Rh_Os_004 | C5: XXX | D5: XXX | E5: C:\Essays\Geo_Dating\Rhenium\ | F5: Rhenium_004.pdf | G5: C:\Essays\Geo_Dating\Rhenium\Rhenium_004.pdf | H5: 4 | I5: XXX, XXX
A6: 5 | B6: Rh_Os_005 | C6: XXX | D6: XXX | E6: C:\Essays\Geo_Dating\Rhenium\ | F6: Rhenium_005.pdf | G6: C:\Essays\Geo_Dating\Rhenium\Rhenium_005.pdf | H6: 5 | I6: XXX, XXX
A7: 6 | B7: Rh_Os_006 | C7: XXX | D7: XXX | E7: =("C:\Essays\Geo_Dating\Rhenium\") -> C:\Essays\Geo_Dating\Rhenium\ | F7: Rhenium_006.pdf | G7: C:\Essays\Geo_Dating\Rhenium\Rhenium_006.pdf | H7: 6 | I7: XXX, XXX
A8: 7 | B8: Rh_Os_007 | C8: XXX | D8: XXX | E8: =("C:\Essays\Geo_Dating\Rhenium\") -> C:\Essays\Geo_Dating\Rhenium\ | F8: Rhenium_007.pdf | G8: C:\Essays\Geo_Dating\Rhenium\Rhenium_007.pdf | H8: 7 | I8: XXX, XXX
A9: 8 | B9: Rh_Os_008 | C9: XXX | D9: XXX | E9: C:\Essays\Geo_Dating\Rhenium\ | F9: Rhenium_008.pdf | G9: C:\Essays\Geo_Dating\Rhenium\Rhenium_008.pdf | H9: 8 | I9: XXX, XXX
A10: 9 | B10: Rh_Os_009 | C10: XXX | D10: XXX | E10: C:\Essays\Geo_Dating\Rhenium\ | F10: Rhenium_009.pdf | G10: C:\Essays\Geo_Dating\Rhenium\Rhenium_009.pdf | H10: 9 | I10: XXX, XXX
A11: 10 | B11: =("Rh_Os_0" & A11) -> Rh_Os_010 | C11: XXX | D11: XXX | E11: C:\Essays\Geo_Dating\Rhenium\ | F11: =("Rhenium_0" & A11 & ".pdf") -> Rhenium_010.pdf | G11: C:\Essays\Geo_Dating\Rhenium\Rhenium_010.pdf | H11: 10 | I11: XXX, XXX
A12: 11 | B12: =("Rh_Os_0" & A12) -> Rh_Os_011 | C12: XXX | D12: XXX | E12: C:\Essays\Geo_Dating\Rhenium\ | F12: =("Rhenium_0" & A12 & ".pdf") -> Rhenium_011.pdf | G12: C:\Essays\Geo_Dating\Rhenium\Rhenium_011.pdf | H12: 11 | I12: XXX, XXX
A13: 12 | B13: Rh_Os_012 | C13: XXX | D13: XXX | E13: C:\Essays\Geo_Dating\Rhenium\ | F13: Rhenium_012.pdf | G13: C:\Essays\Geo_Dating\Rhenium\Rhenium_012.pdf | H13: 12 | I13: XXX, XXX
A14: 13 | B14: Rh_Os_013 | C14: XXX | D14: XXX | E14: C:\Essays\Geo_Dating\Rhenium\ | F14: Rhenium_013.pdf | G14: C:\Essays\Geo_Dating\Rhenium\Rhenium_013.pdf | H14: 13 | I14: XXX, XXX
A15: 14 | B15: Rh_Os_014 | C15: XXX | D15: XXX | E15: C:\Essays\Geo_Dating\Rhenium\ | F15: Rhenium_014.pdf | G15: C:\Essays\Geo_Dating\Rhenium\Rhenium_014.pdf | H15: 14 | I15: XXX, XXX
A16: 15 | B16: Rh_Os_015 | C16: XXX | D16: XXX | E16: C:\Essays\Geo_Dating\Rhenium\ | F16: Rhenium_015.pdf | G16: C:\Essays\Geo_Dating\Rhenium\Rhenium_015.pdf | H16: 15 | I16: XXX, XXX
A17: 16 | B17: Rh_Os_016 | C17: XXX | D17: XXX | E17: C:\Essays\Geo_Dating\Rhenium\ | F17: Rhenium_016.pdf | G17: C:\Essays\Geo_Dating\Rhenium\Rhenium_016.pdf | H17: 16 | I17: XXX, XXX
A18: 17 | B18: Rh_Os_017 | C18: XXX | D18: XXX | E18: C:\Essays\Geo_Dating\Rhenium\ | F18: Rhenium_017.pdf | G18: C:\Essays\Geo_Dating\Rhenium\Rhenium_017.pdf | H18: 17 | I18: XXX, XXX
A19: 18 | B19: Rh_Os_018 | C19: XXX | D19: XXX | E19: C:\Essays\Geo_Dating\Rhenium\ | F19: Rhenium_018.pdf | G19: C:\Essays\Geo_Dating\Rhenium\Rhenium_018.pdf | H19: 18 | I19: XXX, XXX
A20: 19 | B20: Rh_Os_019 | C20: XXX | D20: XXX | E20: C:\Essays\Geo_Dating\Rhenium\ | F20: Rhenium_019.pdf | G20: C:\Essays\Geo_Dating\Rhenium\Rhenium_019.pdf | H20: 19 | I20: XXX, XXX
A21: 20 | B21: Rh_Os_020 | C21: XXX | D21: XXX | E21: C:\Essays\Geo_Dating\Rhenium\ | F21: Rhenium_020.pdf | G21: C:\Essays\Geo_Dating\Rhenium\Rhenium_020.pdf | H21: 20 | I21: XXX, XXX
A22: 21 | B22: Rh_Os_021 | C22: XXX | D22: XXX | E22: C:\Essays\Geo_Dating\Rhenium\ | F22: Rhenium_021.pdf | G22: C:\Essays\Geo_Dating\Rhenium\Rhenium_021.pdf | H22: 21 | I22: XXX, XXX
A23: 22 | B23: Rh_Os_022 | C23: XXX | D23: XXX | E23: C:\Essays\Geo_Dating\Rhenium\ | F23: Rhenium_022.pdf | G23: C:\Essays\Geo_Dating\Rhenium\Rhenium_022.pdf | H23: 22 | I23: XXX, XXX
A24: 23 | B24: Rh_Os_023 | C24: XXX | D24: XXX | E24: C:\Essays\Geo_Dating\Rhenium\ | F24: Rhenium_023.pdf | G24: C:\Essays\Geo_Dating\Rhenium\Rhenium_023.pdf | H24: 23 | I24: XXX, XXX
A25: 24 | B25: Rh_Os_024 | C25: XXX | D25: XXX | E25: C:\Essays\Geo_Dating\Rhenium\ | F25: Rhenium_024.pdf | G25: C:\Essays\Geo_Dating\Rhenium\Rhenium_024.pdf | H25: 24 | I25: XXX, XXX
A26: 25 | B26: Rh_Os_025 | C26: XXX | D26: XXX | E26: C:\Essays\Geo_Dating\Rhenium\ | F26: Rhenium_025.pdf | G26: C:\Essays\Geo_Dating\Rhenium\Rhenium_025.pdf | H26: 25 | I26: XXX, XXX
A27: 26 | B27: Rh_Os_026 | C27: XXX | D27: XXX | E27: C:\Essays\Geo_Dating\Rhenium\ | F27: Rhenium_026.pdf | G27: C:\Essays\Geo_Dating\Rhenium\Rhenium_026.pdf | H27: 26 | I27: XXX, XXX
A28: 27 | B28: Rh_Os_027 | C28: XXX | D28: XXX | E28: C:\Essays\Geo_Dating\Rhenium\ | F28: Rhenium_027.pdf | G28: C:\Essays\Geo_Dating\Rhenium\Rhenium_027.pdf | H28: 27 | I28: XXX, XXX
A29: 28 | B29: Rh_Os_028 | C29: XXX | D29: XXX | E29: C:\Essays\Geo_Dating\Rhenium\ | F29: Rhenium_028.pdf | G29: C:\Essays\Geo_Dating\Rhenium\Rhenium_028.pdf | H29: 28 | I29: XXX, XXX
A30: 29 | B30: Rh_Os_029 | C30: XXX | D30: XXX | E30: C:\Essays\Geo_Dating\Rhenium\ | F30: Rhenium_029.pdf | G30: C:\Essays\Geo_Dating\Rhenium\Rhenium_029.pdf | H30: 29 | I30: XXX, XXX
A31: 30 | B31: Rh_Os_030 | C31: XXX | D31: XXX | E31: C:\Essays\Geo_Dating\Rhenium\ | F31: Rhenium_030.pdf | G31: C:\Essays\Geo_Dating\Rhenium\Rhenium_030.pdf | H31: 30 | I31: XXX, XXX
A32: 31 | B32: Rh_Os_031 | C32: XXX | D32: XXX | E32: C:\Essays\Geo_Dating\Rhenium\ | F32: Rhenium_031.pdf | G32: C:\Essays\Geo_Dating\Rhenium\Rhenium_031.pdf | H32: 31 | I32: XXX, XXX
A33: 32 | B33: Rh_Os_032 | C33: XXX | D33: XXX | E33: C:\Essays\Geo_Dating\Rhenium\ | F33: Rhenium_032.pdf | G33: C:\Essays\Geo_Dating\Rhenium\Rhenium_032.pdf | H33: 32 | I33: XXX, XXX
A34: 33 | B34: Rh_Os_033 | C34: XXX | D34: XXX | E34: C:\Essays\Geo_Dating\Rhenium\ | F34: Rhenium_033.pdf | G34: C:\Essays\Geo_Dating\Rhenium\Rhenium_033.pdf | H34: 33 | I34: XXX, XXX
A35: 34 | B35: Rh_Os_034 | C35: XXX | D35: XXX | E35: C:\Essays\Geo_Dating\Rhenium\ | F35: Rhenium_034.pdf | G35: C:\Essays\Geo_Dating\Rhenium\Rhenium_034.pdf | H35: 34 | I35: XXX, XXX
A36: 35 | B36: Rh_Os_035 | C36: XXX | D36: XXX | E36: C:\Essays\Geo_Dating\Rhenium\ | F36: Rhenium_035.pdf | G36: C:\Essays\Geo_Dating\Rhenium\Rhenium_035.pdf | H36: 35 | I36: XXX, XXX
A37: 36 | B37: Rh_Os_036 | C37: XXX | D37: XXX | E37: C:\Essays\Geo_Dating\Rhenium\ | F37: Rhenium_036.pdf | G37: C:\Essays\Geo_Dating\Rhenium\Rhenium_036.pdf | H37: 36 | I37: XXX, XXX
A38: 37 | B38: Rh_Os_037 | C38: XXX | D38: XXX | E38: C:\Essays\Geo_Dating\Rhenium\ | F38: Rhenium_037.pdf | G38: C:\Essays\Geo_Dating\Rhenium\Rhenium_037.pdf | H38: 37 | I38: XXX, XXX
A39: 38 | B39: Rh_Os_038 | C39: XXX | D39: XXX | E39: C:\Essays\Geo_Dating\Rhenium\ | F39: Rhenium_038.pdf | G39: C:\Essays\Geo_Dating\Rhenium\Rhenium_038.pdf | H39: 38 | I39: XXX, XXX
A40: 39 | B40: Rh_Os_039 | C40: XXX | D40: XXX | E40: C:\Essays\Geo_Dating\Rhenium\ | F40: Rhenium_039.pdf | G40: C:\Essays\Geo_Dating\Rhenium\Rhenium_039.pdf | H40: 39 | I40: XXX, XXX
A41: 40 | B41: Rh_Os_040 | C41: XXX | D41: XXX | E41: C:\Essays\Geo_Dating\Rhenium\ | F41: Rhenium_040.pdf | G41: C:\Essays\Geo_Dating\Rhenium\Rhenium_040.pdf | H41: =(A41-4) -> 36 | I41: XXX, XXX
A42: 41 | B42: Rh_Os_041 | C42: XXX | D42: XXX | E42: C:\Essays\Geo_Dating\Rhenium\ | F42: Rhenium_041.pdf | G42: C:\Essays\Geo_Dating\Rhenium\Rhenium_041.pdf | H42: 37 | I42: XXX, XXX
A43: 42 | B43: Rh_Os_042 | C43: XXX | D43: XXX | E43: C:\Essays\Geo_Dating\Rhenium\ | F43: Rhenium_042.pdf | G43: C:\Essays\Geo_Dating\Rhenium\Rhenium_042.pdf | H43: 38 | I43: XXX, XXX
A44: 43 | B44: Rh_Os_043 | C44: XXX | D44: XXX | E44: C:\Essays\Geo_Dating\Rhenium\ | F44: Rhenium_043.pdf | G44: C:\Essays\Geo_Dating\Rhenium\Rhenium_043.pdf | H44: 39 | I44: XXX, XXX
A45: 44 | B45: Rh_Os_044 | C45: XXX | D45: XXX | E45: C:\Essays\Geo_Dating\Rhenium\ | F45: Rhenium_044.pdf | G45: C:\Essays\Geo_Dating\Rhenium\Rhenium_044.pdf | H45: 40 | I45: XXX, XXX
A46: 45 | B46: Rh_Os_045 | C46: XXX | D46: XXX | E46: C:\Essays\Geo_Dating\Rhenium\ | F46: Rhenium_045.pdf | G46: C:\Essays\Geo_Dating\Rhenium\Rhenium_045.pdf | H46: 41 | I46: XXX, XXX
A47: 46 | B47: Rh_Os_046 | C47: XXX | D47: XXX | E47: C:\Essays\Geo_Dating\Rhenium\ | F47: Rhenium_046.pdf | G47: C:\Essays\Geo_Dating\Rhenium\Rhenium_046.pdf | H47: 42 | I47: XXX, XXX
A48: 47 | B48: Rh_Os_047 | C48: XXX | D48: XXX | E48: C:\Essays\Geo_Dating\Rhenium\ | F48: Rhenium_047.pdf | G48: C:\Essays\Geo_Dating\Rhenium\Rhenium_047.pdf | H48: 43 | I48: XXX, XXX
A49: 48 | B49: Rh_Os_048 | C49: XXX | D49: XXX | E49: C:\Essays\Geo_Dating\Rhenium\ | F49: Rhenium_048.pdf | G49: C:\Essays\Geo_Dating\Rhenium\Rhenium_048.pdf | H49: 44 | I49: XXX, XXX
A50: 49 | B50: Rh_Os_049 | C50: XXX | D50: XXX | E50: C:\Essays\Geo_Dating\Rhenium\ | F50: Rhenium_049.pdf | G50: C:\Essays\Geo_Dating\Rhenium\Rhenium_049.pdf | H50: 45 | I50: XXX, XXX
A51: 50 | B51: Rh_Os_050 | C51: XXX | D51: XXX | E51: C:\Essays\Geo_Dating\Rhenium\ | F51: Rhenium_050.pdf | G51: C:\Essays\Geo_Dating\Rhenium\Rhenium_050.pdf | H51: 46 | I51: XXX, XXX

Sheet Os_Os_01
A1: Osmium | D1: Rhenium_007.pdf
A2: Osmium | B2: Today | C2: Age | D2: Age | E2: Model Age | F2: Model Age | G2: Model Age
A3: Dating | B3: 187Os/186Os | C3: Billion Years | D3: Million Years | E3: Million Years | F3: % Difference | G3: Difference
B4: 8.826110898 | C4: =(1.04-B4)/0.050768 -> -153.3665084 | D4: =(C4* 1000) -> -153366.5084
B5: 8.841449169 | C5: =(1.04-B5)/0.050768 -> -153.6686332 | D5: =(C5* 1000) -> -153668.6332
B6: 8.798788526 | C6: -152.8283274 | D6: -152828.3274 | I6: 186Os/188Os | J6: 187Os/188Os | K6: 187Os/186Os
B7: 8.834782173 | C7: -153.5373104 | D7: -153537.3104 | H7: PGM79-113 | I7: 0.119858 | J7: 1.05788 | K7: =(J7/I7) -> 8.826110898
B8: 8.834130103 | C8: -153.5244663 | D8: -153524.4663 | H8: PGM79-113 | I8: 0.119848 | J8: 1.05963 | K8: =(J8/I8) -> 8.841449169
B9: 8.806114616 | C9: -152.9726327 | D9: -152972.6327 | H9: PGM79-113 | I9: 0.119854 | J9: 1.05457 | K9: 8.798788526
B10: 10.03796222 | C10: -177.2368859 | D10: -177236.8859 | H10: PGM79-113 | I10: 0.119866 | J10: 1.05899 | K10: 8.834782173
B11: 10.02085558 | C11: -176.8999287 | D11: -176899.9287 | H11: PGM79-113 | I11: 0.119859 | J11: 1.05885 | K11: 8.834130103
B12: 10.1859499 | C12: -180.1518653 | D12: -180151.8653 | H12: PGM79-113 | I12: 0.119844 | J12: 1.05536 | K12: 8.806114616
B13: 16.37045692 | C13: -301.9708658 | D13: -301970.8658
B14: 16.37145838 | C14: -301.990592 | D14: -301990.592 | H14: McCreedy
B15: 16.34557289 | C15: -301.4807141 | D15: -301480.7141 | H15: F41874 | I15: 0.119856 | J15: 1.20311 | K15: 10.03796222
B16: 17.08707481 | C16: -316.0864089 | D16: -316086.4089 | H16: F41874 | I16: 0.119872 | J16: 1.20122 | K16: 10.02085558
B17: 17.07846508 | C17: -315.9168193 | D17: -315916.8193 | H17: F41874 | I17: 0.119871 | J17: 1.221 | K17: 10.1859499
B18: 17.07034966 | C18: -315.7569662 | D18: -315756.9662
C19: Average | D19: =AVERAGE(D4:D18) -> -220492.595 | H19: Strathcona
C20: Maximum | D20: =MAX(D4:D19) -> -152828.3274 | H20: PGM79-138 | I20: 0.119825 | J20: 1.96159 | K20: 16.37045692
C21: Minimum | D21: =MIN(D4:D20) -> -316086.4089 | H21: PGM79-138 | I21: 0.119825 | J21: 1.96171 | K21: 16.37145838
C22: Difference | D22: =(D20+ABS(D21)) -> 163258.0815 | H22: PGM79-138 | I22: 0.119830 | J22: 1.95869 | K22: 16.34557289
H23: PGM79-139 | I23: 0.119828 | J23: 2.04751 | K23: 17.08707481
H24: PGM79-139 | I24: 0.119824 | J24: 2.04641 | K24: 17.07846508
H25: PGM79-139 | I25: 0.119830 | J25: 2.04554 | K25: 17.07034966

Sheet Os_Os_02
A1: Osmium | B1: Table 1 | G1: Rhenium_021.pdf
A2: Osmium | B2: Today | C2: Age | D2: Age | H2: Model Age | I2: Model Age | J2: Model Age
A3: Dating | B3: 187Os/186Os | C3: Billion Years | D3: Million Years | H3: Million Years | I3: % Difference | J3: Difference
B4: 1.051792004 | C4: =(1.04-B4)/0.050768 -> -0.2322723798 | D4: =(C4* 1000) -> -232.2723798
B5: 1.053457582 | C5: =(1.04-B5)/0.050768 -> -0.265080006 | D5: =(C5/0.050768) -> -5.221399425 | K5: 187Os/188Os | L5: 186Os/188Os | M5: 187Os/186Os
B6: 1.052224057 | C6: -0.240782709 | D6: -4.742804699 | K6: 0.1260416 | L6: 0.1198351 | M6: =(K6/L6) -> 1.051792004
B7: 1.056851341 | C7: -0.3319284028 | D7: -6.538142192 | K7: 0.1262413 | L7: 0.1198352 | M7: =(K7/L7) -> 1.053457582
B8: 1.0612428 | C8: -0.4184289238 | D8: -8.241981638 | K8: 0.1260697 | L8: 0.1198126 | M8: 1.052224057
B9: 1.051975328 | C9: -0.2358833894 | D9: -4.646300611 | K9: 0.1266184 | L9: 0.1198072 | M9: 1.056851341
B10: 1.055257264 | C10: -0.3005291443 | D10: -5.919656956 | K10: 0.1271579 | L10: 0.1198198 | M10: 1.0612428
B11: 1.071199215 | C11: -0.6145448894 | D11: -12.10496552 | K11: 0.1260217 | L11: 0.1197953 | M11: 1.051975328
B12: 1.071046331 | C12: -0.6115334747 | D12: -12.04564834 | K12: 0.1264519 | L12: 0.1198304 | M12: 1.055257264
B13: 1.078262372 | C13: -0.7536710443 | D13: -14.84539561 | K13: 0.1283708 | L13: 0.1198384 | M13: 1.071199215
B14: 1.101004504 | C14: -1.201633004 | D14: -23.66910266 | K14: 0.1283528 | L14: 0.1198387 | M14: 1.071046331
B15: 1.07463445 | C15: -0.6822102585 | D15: -13.43780055 | K15: 0.1292181 | L15: 0.1198392 | M15: 1.078262372
B16: 1.086947851 | C16: -0.9247528131 | D16: -18.21526972 | K16: 0.1319446 | L16: 0.1198402 | M16: 1.101004504
B17: 1.095301394 | C17: -1.08929629 | D17: -21.45635616 | K17: 0.1287843 | L17: 0.1198401 | M17: 1.07463445
B18: 1.081276838 | C18: -0.8130483358 | D18: -16.01497667 | K18: 0.1302607 | L18: 0.1198408 | M18: 1.086947851
B19: 1.076178603 | C19: -0.7126261208 | D19: =(C19/0.050768) -> -14.0369154 | K19: 0.1312607 | L19: 0.1198398 | M19: 1.095301394
B20: 1.069124501 | C20: -0.5736783185 | D20: -11.29999839 | K20: 0.12958 | L20: 0.1198398 | M20: 1.081276838
B21: 1.069866864 | C21: -0.5883009737 | D21: -11.58802737 | K21: 0.1289658 | L21: 0.1198368 | M21: 1.076178603
B22: 1.069614169 | C22: -0.5833235274 | D22: -11.48998439 | K22: 0.128118 | L22: 0.1198345 | M22: 1.069124501
B23: 1.064731338 | C23: -0.4871442287 | D23: -9.595497729 | K23: 0.1282045 | L23: 0.1198322 | M23: 1.069866864
B24: 1.064567731 | C24: -0.4839215793 | D24: -9.532019762 | K24: 0.128177 | L24: 0.1198348 | M24: 1.069614169
B25: 1.071303345 | C25: -0.6165959865 | D25: -12.14536689 | K25: 0.1275957 | L25: 0.1198384 | M25: 1.064731338
E26: Average | F26: =AVERAGE(F4:F25) ->  | G26: =AVERAGE(G21:G25) ->  | K26: 0.1275762 | L26: 0.1198385 | M26: 1.064567731
E27: Maximum | F27: =MAX(F4:F26) ->  | G27: =MAX(G21:G26) ->  | K27: 0.1283851 | L27: 0.1198401 | M27: 1.071303345
E28: Minimum | F28: =MIN(F4:F27) ->  | G28: =MIN(G21:G27) -> 
E29: Difference | F29: =(F27+ABS(F28)) ->  | G29: =(G27+ABS(G28)) -> 
A34: Osmium | B34: Table 2 | G34: Rhenium_021.pdf
A35: Osmium | B35: Today | C35: Age | D35: Age | K35: 187Os/188Os | L35: 186Os/188Os | M35: 187Os/186Os
A36: Dating | B36: 187Os/186Os | C36: Billion Years | D36: Million Years | K36: 0.1243534 | L36: 0.1198403 | M36: =(K36/L36) -> 1.037659285
B37: 1.037659285 | C37: =(1.04-B37)/0.050768 -> 0.04610611215 | D37: =(C37* 1000) -> 46.10611215 | K37: 0.1245518 | L37: 0.119839 | M37: 1.039326096
B38: 1.039326096 | C38: =(1.04-B38)/0.050768 -> 0.01327419151 | D38: =(C38/0.050768) -> 0.2614676866 | K38: 0.1229181 | L38: 0.1198352 | M38: 1.025726164
B39: 1.025726164 | C39: 0.2811581324 | D39: =(C39/0.050768) -> 5.538097472 | K39: 0.1274194 | L39: 0.1198374 | M39: 1.063269063
B40: 1.063269063 | C40: -0.4583411384 | D40: -9.028150378 | K40: 0.1228888 | L40: 0.1198393 | M40: 1.025446577
B41: 1.025446577 | C41: 0.2866652772 | D41: 5.646574164 | K41: 0.126133 | L41: 0.1198378 | M41: 1.052531004
B42: 1.052531004 | C42: -0.2468287978 | D42: -4.861897215 | K42: 0.1227834 | L42: 0.1198362 | M42: 1.02459357
B43: 1.02459357 | C43: 0.3034673372 | D43: 5.977531855 | K43: 0.122294 | L43: 0.1198382 | M43: 1.020492631
B44: 1.020492631 | C44: 0.3842453731 | D44: 7.568652953 | K44: 0.1468804 | L44: 0.1198408 | M44: 1.225629335
B45: 1.225629335 | C45: -3.656424025 | D45: -72.02221922 | K45: 0.1314672 | L45: 0.1198388 | M45: 1.097033682
B46: 1.097033682 | C46: -1.123417939 | D46: -22.12846554 | K46: 0.1412296 | L46: 0.1198394 | M46: 1.178490547
B47: 1.178490547 | C47: -2.727910229 | D47: -53.73286774 | K47: 0.129544 | L47: 0.1198375 | M47: 1.080997184
B48: 1.080997184 | C48: -0.8075398615 | D48: -15.90647379 | K48: 0.1207897 | L48: 0.119837 | M48: 1.007949965
B49: 1.007949965 | C49: 0.6313038652 | D49: 12.43507456 | K49: 0.12093 | L49: 0.1198393 | M49: 1.009101355
B50: 1.009101355 | C50: 0.6086244308 | D50: 11.9883476 | K50: 0.1595461 | L50: 0.1198398 | M50: 1.331328156
B51: 1.331328156 | C51: -5.738420982 | D51: -113.0322444 | K51: 0.1409429 | L51: 0.1198377 | M51: 1.176114862
B52: 1.176114862 | C52: -2.681115309 | D52: -52.81112727 | K52: 0.1166746 | L52: 0.1198369 | M52: 0.9736116338
B53: 0.9736116338 | C53: 1.307681338 | D53: 25.75798413 | K53: 0.1095268 | L53: 0.119832 | M53: 0.9140029374
B54: 0.9140029374 | C54: 2.481820488 | D54: 48.88552806 | K54: 0.1215616 | L54: 0.119836 | M54: 1.01439968
B55: 1.01439968 | C55: 0.5042609604 | D55: 9.932653648 | K55: 0.1200656 | L55: 0.1198375 | M55: 1.001903411
B56: 1.001903411 | C56: 0.7504055533 | D56: 14.78107377 | K56: 0.1290024 | L56: 0.1198399 | M56: 1.076456172
B57: 1.076456172 | C57: -0.7180935224 | D57: -14.14460925 | K57: 0.1242841 | L57: 0.1198388 | M57: 1.037093996
B58: 1.037093996 | C58: 0.0572408551 | D58: 1.127498722 | K58: 0.1242834 | L58: 0.11984 | M58: 1.03707777
B59: 1.03707777 | C59: 0.05756046406 | D59: 1.133794202 | K59: 0.1233602 | L59: 0.119839 | M59: 1.029382755
B60: 1.029382755 | C60: 0.209132619 | D60: 4.119378724 | K60: 0.1199733 | L60: 0.1198382 | M60: 1.001127353
B61: 1.001127353 | C61: 0.7656919047 | D61: 15.08217587 | K61: 0.1238699 | L61: 0.119837 | M61: 1.033653212
B62: 1.033653212 | C62: 0.1250155161 | D62: 2.462486528 | K62: 0.1238042 | L62: 0.1198376 | M62: 1.033099795
B63: 1.033099795 | C63: 0.1359164226 | D63: 2.67720656 | K63: 0.1096116 | L63: 0.1198329 | M63: 0.9147037249
B64: 0.9147037249 | C64: 2.468016764 | D64: 48.61362992
C65: Average | D65: =AVERAGE(D37:D64) -> -3.127599507
C66: Maximum | D66: =MAX(D37:D65) -> 48.88552806
C67: Minimum | D67: =MIN(D37:D66) -> -113.0322444
C68: Difference | D68: =(D66+ABS(D67)) -> 161.9177724

Sheet Os_Os_03
A1: Osmium | G1: Rhenium_027.pdf
A2: Osmium | B2: Today | C2: Age | D2: Age | H2: Model Age | I2: Model Age | J2: Model Age
A3: Dating | B3: 187Os/186Os | C3: Billion Years | D3: Million Years | H3: Million Years | I3: % Difference | J3: Difference
B4: 1.082326003 | C4: =(1.04-B4)/0.050768 -> -0.8337142076 | D4: =(C4* 1000) -> -833.7142076
B5: 1.104068305 | C5: =(1.04-B5)/0.050768 -> -1.26198206 | D5: =(C5* 1000) -> -1261.98206
B6: 1.106685214 | C6: -1.313528482 | D6: -1313.528482 | K6: 186Os/188Os | L6: 187Os/188Os | M6: 187Os/186Os
B7: 1.107356749 | C7: -1.326756009 | D7: -1326.756009 | K7: 0.1198382 | L7: 0.129704 | M7: =(L7/K7) -> 1.082326003
B8: 1.104893395 | C8: -1.278234224 | D8: -1278.234224 | K8: 0.1198386 | L8: 0.13231 | M8: =(L8/K8) -> 1.104068305
B9: 1.128855376 | C9: -1.750224086 | D9: -1750.224086 | K9: 0.1198376 | L9: 0.1326225 | M9: 1.106685214
B10: 1.14455893 | C10: -2.059544005 | D10: -2059.544005 | K10: 0.1198369 | L10: 0.1327022 | M10: 1.107356749
B11: 1.148833122 | C11: -2.143734682 | D11: -2143.734682 | K11: 0.119835 | L11: 0.1324049 | M11: 1.104893395
B12: 1.152645225 | C12: -2.218823367 | D12: -2218.823367 | K12: 0.1198359 | L12: 0.1352774 | M12: 1.128855376
B13: 1.100100969 | C13: -1.18383566 | D13: -1183.83566 | K13: 0.1198404 | L13: 0.1371644 | M13: 1.14455893
B14: 1.101263805 | C14: -1.20674057 | D14: -1206.74057 | K14: 0.1198369 | L14: 0.1376726 | M14: 1.148833122
B15: 1.09225891 | C15: -1.029367116 | D15: -1029.367116 | K15: 0.1198367 | L15: 0.1381292 | M15: 1.152645225
B16: 1.118636727 | C16: -1.548942786 | D16: -1548.942786 | K16: 0.119839 | L16: 0.131835 | M16: 1.100100969
B17: 1.121598403 | C17: -1.607280239 | D17: -1607.280239 | K17: 0.1198365 | L17: 0.1319716 | M17: 1.101263805
B18: 0.9494927077 | C18: 1.782762613 | D18: 1782.762613 | K18: 0.119841 | L18: 0.1308974 | M18: 1.09225891
B19: 0.9495316279 | C19: 1.781995983 | D19: 1781.995983 | K19: 0.1198381 | L19: 0.1340553 | M19: 1.118636727
B20: 0.9494944607 | C20: 1.782728083 | D20: 1782.728083 | K20: 0.1198371 | L20: 0.1344091 | M20: 1.121598403
B21: 0.9495059732 | C21: 1.782501316 | D21: 1782.501316 | K21: 0.119852 | L21: 0.1137986 | M21: 0.9494927077
B22: 0.9494778069 | C22: 1.78305612 | D22: 1783.05612 | K22: 0.1198513 | L22: 0.1138026 | M22: 0.9495316279
B23: 0.9495275482 | C23: 1.782076343 | D23: 1782.076343 | K23: 0.1198522 | L23: 0.113799 | M23: 0.9494944607
C24: Average | D24: =AVERAGE(D4:D23) -> -503.3793518 | E24: Average | F24: =AVERAGE(F4:F23) ->  | G24: =AVERAGE(G19:G23) ->  | K24: 0.1198518 | L24: 0.1138 | M24: 0.9495059732
C25: Maximum | D25: =MAX(D4:D24) -> 1783.05612 | E25: Maximum | F25: =MAX(F4:F24) ->  | G25: =MAX(G19:G24) ->  | K25: 0.1198503 | L25: 0.1137952 | M25: 0.9494778069
C26: Minimum | D26: =MIN(D4:D25) -> -2218.823367 | E26: Minimum | F26: =MIN(F4:F25) ->  | G26: =MIN(G19:G25) ->  | K26: 0.1198535 | L26: 0.1138042 | M26: 0.9495275482
C27: Difference | D27: =(D25+ABS(D26)) -> 4001.879487 | E27: Difference | F27: =(F25+ABS(F26)) ->  | G27: =(G25+ABS(G26)) -> 

Sheet Rh_Os_01
A1: Table 1 | B1: Rhenium_025.pdf | J1: Age | K1: Age | L1: Age
A2: Sample | B2: 238U/204Pb | C2: 232Th/204Pb | D2: 206Pb/204Pb | E2: 208Pb/204Pb | F2: 207Pb/204Pb | G2: 206Pb/238U | H2: 208Pb/232Th | I2: 207Pb/206Pb | J2: 206Pb/238U | K2: 208Pb/232Th | L2: 207Pb/206Pb
A3: EMS-3 | B3: 12.5 | C3: 56 | D3: 18.724 | E3: 39.35 | F3: 15.61 | G3: =(D3/B3) -> 1.49792 | H3: =(E3/C3) -> 0.7026785714 | I3: =(F3/D3) -> 0.8336893826 | J3: =[1]!AgePb6U8(G3) -> 5901.42392 | K3: =[1]!AgePb8Th2(H3) -> 10757.00134 | L3: =[1]!AgePb76(I3) -> 4980.408561
A4: Jd-3 | B4: 13.4 | C4: 55.2 | D4: 19.417 | E4: 39.891 | F4: 15.66 | G4: =(D4/B4) -> 1.449029851 | H4: =(E4/C4) -> 0.7226630435 | I4: =(F4/D4) -> 0.8065097595 | J4: =[1]!AgePb6U8(G4) -> 5774.001398 | K4: =[1]!AgePb8Th2(H4) -> 10992.85244 | L4: =[1]!AgePb76(I4) -> 4933.276054
A5: Jd-10 | B5: 12.8 | C5: 57.7 | D5: 18.84 | E5: 39.63 | F5: 15.64 | G5: 1.471875 | H5: 0.6868284229 | I5: 0.83014862 | J5: =[1]!AgePb6U8(G5) -> 5833.856387 | K5: =[1]!AgePb8Th2(H5) -> 10567.9655 | L5: =[1]!AgePb76(I5) -> 4974.361779
A6: Fd-2 | B6: 10.2 | C6: 54.6 | D6: 18.69 | E6: 39.305 | F6: 15.588 | G6: 1.832352941 | H6: 0.7198717949 | I6: 0.8340288925 | J6: =[1]!AgePb6U8(G6) -> 6711.41205 | K6: =[1]!AgePb8Th2(H6) -> 10960.0758 | L6: =[1]!AgePb76(I6) -> 4980.986929
A7: Fd-3 | B7: 13.9 | C7: 64.8 | D7: 18.35 | E7: 38.81 | F7: 15.64 | G7: 1.320143885 | H7: 0.5989197531 | I7: 0.8523160763 | J7: =[1]!AgePb6U8(G7) -> 5425.490431 | K7: =[1]!AgePb8Th2(H7) -> 9486.16972 | L7: =[1]!AgePb76(I7) -> 5011.775685
A8: Fd-7 | B8: 10.9 | C8: 41.5 | D8: 18.772 | E8: 39.25 | F8: 15.58 | G8: 1.722201835 | H8: 0.9457831325 | I8: 0.8299595142 | J8: =[1]!AgePb6U8(G8) -> 6455.703793 | K8: =[1]!AgePb8Th2(H8) -> 13454.56362 | L8: =[1]!AgePb76(I8) -> 4974.03806
A9: Fd-10 | B9: 13.6 | C9: 55.3 | D9: 18.84 | E9: 39.35 | F9: 15.64 | G9: 1.385294118 | H9: 0.7115732369 | I9: 0.83014862 | J9: =[1]!AgePb6U8(G9) -> 5604.012484 | K9: =[1]!AgePb8Th2(H9) -> 10862.31368 | L9: =[1]!AgePb76(I9) -> 4974.361779
A10: WL-6 | B10: 13.9 | C10: 50 | D10: 19.017 | E10: 39.236 | F10: 15.663 | G10: 1.368129496 | H10: 0.78472 | I10: 0.8236314876 | J10: =[1]!AgePb6U8(G10) -> 5557.456255 | K10: =[1]!AgePb8Th2(H10) -> 11708.16655 | L10: =[1]!AgePb76(I10) -> 4963.16006
A11: WL-12 | B11: 10.5 | C11: 25.5 | D11: 18.946 | E11: 39.42 | F11: 15.74 | G11: 1.804380952 | H11: 1.545882353 | I11: 0.8307822232 | J11: =[1]!AgePb6U8(G11) -> 6647.431557 | K11: =[1]!AgePb8Th2(H11) -> 18887.86843 | L11: =[1]!AgePb76(I11) -> 4975.445834
A12: WL-25 | B12: 16.3 | C12: 47.9 | D12: 19.224 | E12: 39.61 | F12: 15.61 | G12: 1.179386503 | H12: 0.8269311065 | I12: 0.8120058261 | J12: =[1]!AgePb6U8(G12) -> 5022.036529 | K12: =[1]!AgePb8Th2(H12) -> 12180.64817 | L12: =[1]!AgePb76(I12) -> 4942.941753
A13: WL-33 | B13: 12.1 | C13: 45.1 | D13: 18.72 | E13: 39.09 | F13: 15.59 | G13: 1.547107438 | H13: 0.8667405765 | I13: 0.8327991453 | J13: =[1]!AgePb6U8(G13) -> 6027.128943 | K13: =[1]!AgePb8Th2(H13) -> 12616.34973 | L13: =[1]!AgePb76(I13) -> 4978.890819
A14: SC-2 | B14: 15.9 | C14: 137.5 | D14: 19.04 | E14: 39.554 | F14: 15.73 | G14: 1.197484277 | H14: 0.2876654545 | I14: 0.8261554622 | J14: =[1]!AgePb6U8(G14) -> 5075.346949 | K14: =[1]!AgePb8Th2(H14) -> 5110.274961 | L14: =[1]!AgePb76(I14) -> 4967.509437
A15: RY-8 | B15: 11.3 | C15: 45.4 | D15: 18.731 | E15: 39.432 | F15: 15.617 | G15: 1.657610619 | H15: 0.8685462555 | I15: 0.8337515349 | J15: =[1]!AgePb6U8(G15) -> 6300.902213 | K15: =[1]!AgePb8Th2(H15) -> 12635.89136 | L15: =[1]!AgePb76(I15) -> 4980.514458
A16: JP-4 | B16: 5.3 | C16: 19 | D16: 18.962 | E16: 39.152 | F16: 15.652 | G16: 3.577735849 | H16: 2.060631579 | I16: 0.8254403544 | J16: =[1]!AgePb6U8(G16) -> 9806.31439 | K16: =[1]!AgePb8Th2(H16) -> 22609.82907 | L16: =[1]!AgePb76(I16) -> 4966.278581
A17: JP-8 | B17: 5.7 | C17: 23.1 | D17: 18.65 | E17: 39 | F17: 15.62 | G17: 3.271929825 | H17: 1.688311688 | I17: 0.8375335121 | J17: =[1]!AgePb6U8(G17) -> 9360.616759 | K17: =[1]!AgePb8Th2(H17) -> 19988.14293 | L17: =[1]!AgePb76(I17) -> 4986.9426
A18: ZJ-6 | B18: 15.1 | C18: 6.74 | D18: 19.04 | E18: 39.44 | F18: 15.61 | G18: 1.260927152 | H18: 5.851632047 | I18: 0.8198529412 | J18: =[1]!AgePb6U8(G18) -> 5258.823359 | K18: =[1]!AgePb8Th2(H18) -> 38898.16835 | L18: =[1]!AgePb76(I18) -> 4956.622217
A19: LZ-20 | B19: 27.3 | C19: 124.9 | D19: 20.45 | E19: 41.44 | F19: 15.79 | G19: 0.7490842491 | H19: 0.3317854283 | I19: 0.7721271394 | J19: =[1]!AgePb6U8(G19) -> 3604.140949 | K19: =[1]!AgePb8Th2(H19) -> 5791.217166 | L19: =[1]!AgePb76(I19) -> 4871.171345
A20: LZ-50 | B20: 22.4 | C20: 31.5 | D20: 19.22 | E20: 39.93 | F20: 15.7 | G20: 0.8580357143 | H20: 1.267619048 | I20: 0.8168574402 | J20: =[1]!AgePb6U8(G20) -> 3993.681625 | K20: =[1]!AgePb8Th2(H20) -> 16548.36591 | L20: =[1]!AgePb76(I20) -> 4951.416433
A21: LZ-56 | B21: 35.3 | C21: 78.1 | D21: 19.47 | E21: 40.04 | F21: 15.63 | G21: 0.5515580737 | H21: 0.5126760563 | I21: 0.8027734977 | J21: =[1]!AgePb6U8(G21) -> 2831.64954 | K21: =[1]!AgePb8Th2(H21) -> 8365.443255 | L21: =[1]!AgePb76(I21) -> 4926.665155
A22: LZ-66 | B22: 6.7 | C22: 48.3 | D22: 18.641 | E22: 39.4 | F22: 15.618 | G22: 2.782238806 | H22: 0.8157349896 | I22: 0.8378305885 | J22: =[1]!AgePb6U8(G22) -> 8575.768645 | K22: =[1]!AgePb8Th2(H22) -> 12056.39896 | L22: =[1]!AgePb76(I22) -> 4987.446227
I23: Average | J23: =AVERAGE(J3:J22) -> 5988.359909 | K23: =AVERAGE(K3:K22) -> 13723.88535 | L23: =AVERAGE(L3:L22) -> 4964.210688
I24: Maximum | J24: =MAX(J3:J23) -> 9806.31439 | K24: =MAX(K3:K23) -> 38898.16835 | L24: =MAX(L3:L23) -> 5011.775685
I25: Minimum | J25: =MIN(J3:J24) -> 2831.64954 | K25: =MIN(K3:K24) -> 5110.274961 | L25: =MIN(L3:L24) -> 4871.171345
I26: Difference | J26: =(J24-ABS(J25)) -> 6974.664851 | K26: =(K24-ABS(K25)) -> 33787.89339 | L26: =(L24-ABS(L25)) -> 140.6043402
A27: Age Sorted | B27: Age Sorted
A28: 206Pb/238U | B28: 208Pb/232Th
A29: 9806.31439 | B29: 38898.0111
A30: 9360.616759 | B30: 22609.73767
A31: 8575.768645 | B31: 19988.06213
A32: 6711.41205 | B32: 18887.79208
A33: 6647.431557 | B33: 16548.29901
A34: 6455.703793 | B34: 13454.50923
A35: 6300.902213 | B35: 12635.84028
A36: 6027.128943 | B36: 12616.29873
A37: 5901.42392 | B37: 12180.59893
A38: 5833.856387 | B38: 12056.35023
A39: 5774.001398 | B39: 11708.11922
A40: 5604.012484 | B40: 10992.808
A41: 5557.456255 | B41: 10960.03149
A42: 5425.490431 | B42: 10862.26977
A43: 5258.823359 | B43: 10756.95786
A44: 5075.346949 | B44: 10567.92278
A45: 5022.036529 | B45: 9486.131373
A46: 3993.681625 | B46: 8365.409438
A47: 3604.140949 | B47: 5791.193756
A48: 2831.64954 | B48: 5110.254303

Sheet Rh_Os_02
A1: Rhenium | B1: Table 3. | C1: Rhenium_008.pdf | E1: Table 4.
A2: Osmium | B2: Age | E2: Age
A3: Dating | B3: Billion Years | E3: Billion Years
B4: 22.2 | E4: 331.8
B5: 19.8 | E5: 68.2
B6: 17.6 | E6: 19.1
B7: 15.6 | E7: 13.4
B8: 12.9
B9: 11.5
B10: 10.6
B11: 8.9
B12: 7.9
B13: 5.6
B14: 5.5
B15: 5.4
B16: 5.1
B17: 4.7
B18: 4
B19: 3.6
B20: 2.7
B21: 2.2
B22: 2
B23: 1.7
B24: 1.6
B25: 1.4
B26: 1.1
A27: Average | B27: =AVERAGE(B4:B26) -> 7.547826087
A28: Maximum | B28: =MAX(B4:B27) -> 22.2
A29: Minimum | B29: =MIN(B4:B28) -> 1.1
A30: Difference | B30: =(B28+ABS(B29)) -> 23.3

Sheet Rh_Os_03
A1: Rhenium | K1: Rhenium_009.pdf
A2: Osmium | B2: Initial | C2: Today | D2: Today | E2: The Ratio | F2: Half | G2: Decay | H2: 2.303/Delta | I2: Age | J2: Age | K2: Age | L2: Model Age | M2: Model Age | N2: Model Age
A3: Dating | B3: 187Os/188Os | C3: 187Os/188Os | D3: 187Re/188Os | E3: Plus One | F3: Life | G3: Constant | H3: Constant | I3: Years | J3: Million Years | K3: Billion Years | L3: Million Years | M3: % Difference | N3: Difference
B4: 0.1046 | C4: 0.10473 | D4: 0.0013 | E4: =1+((C4-B4)/D4) -> 1.1 | F4: 41600000000 | G4: =(0.693/F4) -> 1.665865385e-11 | H4: =(2.303/G4) -> 1.382464646e+11 | I4: =(LOG(E4))*(H4) -> 5722392385 | J4: =(I4/1000000) -> 5722.392385 | K4: =(J4/1000) -> 5.722392385
B5: 0.1047 | C5: 0.10471 | D5: 0.0008 | E5: =1+((C5-B5)/D5) -> 1.0125 | F5: 41600000000 | G5: 1.665865385e-11 | H5: =(2.303/G5) -> 1.382464646e+11 | I5: =(LOG(E5))*(H5) -> 745844085 | J5: =(I5/1000000) -> 745.844085 | K5: =(J5/1000) -> 0.745844085
B6: 0.1098 | C6: 0.1232 | D6: 0.204 | E6: 1.065686275 | F6: 41600000000 | G6: 1.665865385e-11 | H6: 1.382464646e+11 | I6: 3819663044 | J6: 3819.663044 | K6: 3.819663044
B7: 0.1014 | C7: 0.11431 | D7: 0.1973 | E7: 1.06543335 | F7: 41600000000 | G7: 1.665865385e-11 | H7: 1.382464646e+11 | I7: 3805411857 | J7: 3805.411857 | K7: 3.805411857
B8: 0.1072 | C8: 0.12038 | D8: 0.2013 | E8: 1.065474416 | F8: 41600000000 | G8: 1.665865385e-11 | H8: 1.382464646e+11 | I8: 3807725982 | J8: 3807.725982 | K8: 3.807725982
B9: 0.1009 | C9: 0.10329 | D9: 0.036 | E9: 1.066388889 | F9: 41600000000 | G9: 1.665865385e-11 | H9: 1.382464646e+11 | I9: 3859234578 | J9: 3859.234578 | K9: 3.859234578
B10: 0.104 | C10: 0.10542 | D10: 0.0222 | E10: 1.063963964 | F10: 41600000000 | G10: 1.665865385e-11 | H10: 1.382464646e+11 | I10: 3722551332 | J10: 3722.551332 | K10: 3.722551332
B11: 0.1115 | C11: 0.11287 | D11: 0.0208 | E11: 1.065865385 | F11: 41600000000 | G11: 1.665865385e-11 | H11: 1.382464646e+11 | I11: 3829753077 | J11: 3829.753077 | K11: 3.829753077
B12: 0.1021 | C12: 0.10262 | D12: 0.0083 | E12: 1.062650602 | F12: 41600000000 | G12: 1.665865385e-11 | H12: 1.382464646e+11 | I12: 3648392324 | J12: 3648.392324 | K12: 3.648392324
B13: 0.1114 | C13: 0.11678 | D13: 0.0914 | E13: 1.058862144 | F13: 41600000000 | G13: 1.665865385e-11 | H13: 1.382464646e+11 | I13: 3433962281 | J13: 3433.962281 | K13: 3.433962281
B14: 0.0979 | C14: 0.10517 | D14: 0.1232 | E14: 1.05900974 | F14: 41600000000 | G14: 1.665865385e-11 | H14: 1.382464646e+11 | I14: 3442330687 | J14: 3442.330687 | K14: 3.442330687
B15: 0.0996 | C15: 0.10964 | D15: 0.1688 | E15: 1.059478673 | F15: 41600000000 | G15: 1.665865385e-11 | H15: 1.382464646e+11 | I15: 3468910554 | J15: 3468.910554 | K15: 3.468910554
B16: 0.113 | C16: 0.11626 | D16: 0.0542 | E16: 1.060147601 | F16: 41600000000 | G16: 1.665865385e-11 | H16: 1.382464646e+11 | I16: 3506806151 | J16: 3506.806151 | K16: 3.506806151
B17: 0.1071 | C17: 0.11128 | D17: 0.0699 | E17: 1.059799714 | F17: 41600000000 | G17: 1.665865385e-11 | H17: 1.382464646e+11 | I17: 3487100889 | J17: 3487.100889 | K17: 3.487100889
B18: 0.1051 | C18: 0.10853 | D18: 0.0578 | E18: 1.059342561 | F18: 41600000000 | G18: 1.665865385e-11 | H18: 1.382464646e+11 | I18: 3461196693 | J18: 3461.196693 | K18: 3.461196693
B19: 0.105 | C19: 0.10806 | D19: 0.0513 | E19: 1.059649123 | F19: 41600000000 | G19: 1.665865385e-11 | H19: 1.382464646e+11 | I19: 3478569011 | J19: 3478.569011 | K19: 3.478569011
B20: 0.104 | C20: 0.10649 | D20: 0.0423 | E20: 1.058865248 | F20: 41600000000 | G20: 1.665865385e-11 | H20: 1.382464646e+11 | I20: 3434138273 | J20: 3434.138273 | K20: 3.434138273
B21: 0.1045 | C21: 0.10615 | D21: 0.0281 | E21: 1.058718861 | F21: 41600000000 | G21: 1.665865385e-11 | H21: 1.382464646e+11 | I21: 3425837276 | J21: 3425.837276 | K21: 3.425837276
I22: Average | J22: =AVERAGE(J4:J21) -> 3561.101138 | K22: =AVERAGE(K4:K21) -> 3.561101138
I23: Maximum | J23: =MAX(J4:J22) -> 5722.392385 | K23: =MAX(K4:K22) -> 5.722392385
I24: Minimum | J24: =MIN(J4:J23) -> 745.844085 | K24: =MIN(K4:K23) -> 0.745844085
I25: Difference | J25: =(J23-ABS(J24)) -> 4976.5483 | K25: =(K23+ABS(K24)) -> 6.46823647

Sheet Rh_Os_04
A1: Rhenium_029.pdf
A4: Sample Number | B4: Billion Years | C4: Billion Years | D4: Billion Years
A5: KPH9801/2-1-s2e | B5: 1.9 | C5: 1.8 | D5: 4.1
A6: KPH9803-s5 | B6: 0.5 | C6: 0.4 | D6: 0.8
A7: KPH9810-s1 | B7: 0.8 | C7: 0.6 | D7: 1
A8: KPH9810-s-s1 | B8: 1.8 | C8: 1.7 | D8: 2.9
A9: KPH9816/3-1-s1e | B9: 1.7 | C9: 1.6 | D9: 3.5
A10: KPH9816/3-1-s1-2 | B10: 1.2 | C10: 1.1 | D10: 1.7
A11: KPH9816/3-1-s4e | B11: 3.1 | C11: 3.1 | D11: 10.7
A12: KPH9822-s0 | B12: 1.3 | C12: 1.3 | D12: -1.6
A13: KPH9822-s4 | B13: 2.6 | C13: 2.6 | D13: -3.4
A14: KPH9822-s4-2 | B14: 1.4 | C14: 1.3 | D14: 1.8
A15: KPH9822-s-s1e | B15: 1.1 | C15: 1 | D15: 2.2
A16: KPH9822-s-s3 | B16: 0.9 | C16: 0.8 | D16: 1
A17: KPH9822-s-s5e | B17: 0.7 | C17: 0.6 | D17: -8.3
A18: KPH9826-s1e | B18: 1.3 | C18: 1.2 | D18: 1.9
A19: KPH9826-s2e | B19: 0.6 | C19: 0.5 | D19: 1.7
A20: KPH9826-s4 | B20: -0.7 | C20: 0.8 | D20: 2
A21: KP0201-s2e | B21: 1.1 | C21: 1 | D21: -1.1
A22: KP0201-s4 | B22: 0.4 | C22: 0.2 | D22: -0.1
A23: KP0201-s5 | B23: 2.2 | C23: 2.2 | D23: -1.3
A24: KP0201-s7 | B24: 1 | C24: 0.9 | D24: -0.7
A25: KP0201-s-s4 | B25: 0 | C25: -0.2 | D25: -0.7
A26: KP0201-s-s12 | B26: -2.9 | C26: -3.2 | D26: 7.9
A27: KP0214-8-s3 | B27: 2 | C27: 1.9 | D27: 2.6
A28: KP0214-11-s0 | B28: 1 | C28: 0.9 | D28: -13
A29: KP0214-11-s3-1 | B29: 0.2 | C29: 0 | D29: 0
A30: KP0214-16-s0-1 | B30: 1.8 | C30: 1.7 | D30: 2.7
A31: KP0215-s1e | B31: 0.5 | C31: 0.3 | D31: -2.4
A32: KP0215-s4e | B32: 0.9 | C32: 0.8 | D32: 2.7
A33: KP0215-s5e | B33: 1.6 | C33: 1.5 | D33: 3.1
A34: KP0215-s6e | B34: 1.2 | C34: 1.1 | D34: 6.5
A35: KP0215-s8 | B35: 0.9 | C35: 0.8 | D35: -90
A36: KP0215-s-s3 | B36: 1.6 | C36: 1.5 | D36: -3.3
A37: TC0225-s11 | B37: 1.4 | C37: 1.3 | D37: 1.4
A38: TC0225-s23 | B38: 1.4 | C38: 1.3 | D38: 1.7
A39: TC0225-s-s24 | B39: 0.1 | C39: -0.1 | D39: -0.1
A40: TC0242/2-s6 | B40: 2 | C40: 1.9 | D40: 2.3
A41: TC0242/2-s11 | B41: 1.7 | C41: 1.7 | D41: 4.4
A42: TC0242/2-s13 | B42: 2.1 | C42: 2.1 | D42: 6.5
A43: TC0242/2-s-s5 | B43: 1.7 | C43: 1.6 | D43: 3.8
A44: TC0242/2-s-s9 | B44: 1.7 | C44: 1.6 | D44: 1.8
A45: TC0242/2-s-s19 | B45: 1.9 | C45: 1.8 | D45: 2
A46: TC0247-s-15 | B46: 2.9 | C46: 2.9 | D46: -3
A47: TC0247-ns-6 | B47: 2.3 | C47: 2.2 | D47: 4.1
A48: TC0247-ns-8 | B48: 1.9 | C48: 1.8 | D48: 1.9
A49: TC0248-s6 | B49: 1.3 | C49: 1.2 | D49: 2.6
A50: TC0248-s11 | B50: 0.8 | C50: 0.7 | D50: 1.3
A51: TC0248-s12 | B51: 0.8 | C51: 0.7 | D51: 1.5
A52: TC0248-s18e | B52: 1.3 | C52: 1.3 | D52: 3.4
A53: TC0223-2s11 | B53: 0.5 | C53: 0.4 | D53: 2.1
A54: TC0223-s-s9-1 | B54: 0.9 | C54: 0.8 | D54: 1.3
A55: TC0223-s-s10-1e | B55: 0.8 | C55: 0.7 | D55: 0.9
A56: TC0223-s-s11 | B56: 0 | C56: -0.1 | D56: -0.2
A57: TC0223-s-s12 | B57: 0.8 | C57: 0.7 | D57: 0.8
A58: TC0223-s-s18 | B58: 0.7 | C58: 0.5 | D58: 0.7
A59: TC0223-s-s19 | B59: 0.3 | C59: 0.2 | D59: 0.2
A60: TC0223-s-s20 | B60: 0.5 | C60: 0.3 | D60: 0.4
A61: TC0223-s-s25 | B61: 1 | C61: 0.8 | D61: 1
A62: TC0223-s-s75 | B62: 0.7 | C62: 0.6 | D62: 0.8
A63: TC0223-s-s77-3 | B63: 0.9 | C63: 0.8 | D63: 1
A64: TC0223-s-s81 | B64: 0.4 | C64: 0.3 | D64: 0.4
A65: TC0223-s-s102 | B65: -0.7 | C65: -0.9 | D65: -1.2
A66: TC0223-s-s114 | B66: -1.1 | C66: -0.2 | D66: -0.3
A67: TC0223-s-s115 | B67: 0 | C67: -0.1 | D67: -0.2
A68: TC0223-s-s130e | B68: 1.5 | C68: 1.4 | D68: 5.3
A69: TC0223-s-s132 | B69: 0.3 | C69: 0.2 | D69: 0.3
A70: Average | B70: =AVERAGE(B5:B69) -> 1.023076923 | C70: =AVERAGE(C5:C69) -> 0.9569230769 | D70: =AVERAGE(D5:D69) -> -0.2492307692
A71: Maximum | B71: =MAX(B5:B70) -> 3.1 | C71: =MAX(C5:C70) -> 3.1 | D71: =MAX(D5:D70) -> 10.7
A72: Minimum | B72: =MIN(B5:B71) -> -2.9 | C72: =MIN(C5:C71) -> -3.2 | D72: =MIN(D5:D71) -> -90
A73: Difference | B73: =(B71 +ABS(B72)) -> 6 | C73: =(C71 +ABS(C72)) -> 6.3 | D73: =(D71 +ABS(D72)) -> 100.7
